[Event "*** Titled Tuesday Blitz"]
[Site "Chess.com"]
[Date "2020.04.07"]
[Round "3"]
[White "SidArun"]
[Black "LogoCzar"]
[Result "0-1"]
[WhiteElo "2203"]
[BlackElo "2399"]
[TimeControl "180+1"]
[EndTime "13:30:19 PDT"]
[Termination "LogoCzar won by resignation"]

1. d4 {[%clk 0:03:00.9]} 1... d5 {[%clk 0:02:58.5]} 2. Nc3 {[%clk 0:03:00.9]}
2... Nf6 {[%clk 0:02:57.6]} 3. Bf4 {[%clk 0:03:00.7]} 3... c5 {[%clk 0:02:57.4]}
4. e3 {[%clk 0:02:59.6]} 4... cxd4 {[%clk 0:02:57.7]} 5. exd4 {[%clk 0:02:58.9]}
5... a6 {[%clk 0:02:58.2]} 6. Nf3 {[%clk 0:02:57.7]} 6... Bg4 {[%clk 0:02:58.6]}
7. h3 {[%clk 0:02:56.3]} 7... Bh5 {[%clk 0:02:57.5]} 8. g4 {[%clk 0:02:56.5]}
8... Bg6 {[%clk 0:02:57.4]} 9. Ne5 {[%clk 0:02:56.8]} 9... Nc6 {[%clk
0:02:57.5]} 10. Bd3 {[%clk 0:02:45.1]} 10... Bxd3 {[%clk 0:02:54.3]} 11. Qxd3
{[%clk 0:02:44.6]} 11... e6 {[%clk 0:02:54.4]} 12. O-O-O {[%clk 0:02:13]} 12...
Be7 {[%clk 0:02:52.6]} 13. Be3 {[%clk 0:02:04.6]} 13... Nxe5 {[%clk 0:02:50.3]}
14. dxe5 {[%clk 0:02:04.5]} 14... Nd7 {[%clk 0:02:50.5]} 15. f4 {[%clk
0:02:04.4]} 15... Rc8 {[%clk 0:02:49.3]} 16. Kb1 {[%clk 0:02:03.5]} 16... b5
{[%clk 0:02:49]} 17. Ne2 {[%clk 0:02:03.4]} 17... Nc5 {[%clk 0:02:47.7]} 18.
Bxc5 {[%clk 0:02:03.1]} 18... Rxc5 {[%clk 0:02:43.7]} 19. f5 {[%clk 0:02:03.6]}
19... Qc7 {[%clk 0:02:35.7]} 20. Nd4 {[%clk 0:02:00.5]} 20... exf5 {[%clk
0:02:19]} 21. Nxf5 {[%clk 0:01:57.6]} 21... O-O {[%clk 0:02:16.3]} 22. Rhe1
{[%clk 0:01:42.2]} 22... Rc8 {[%clk 0:02:14.1]} 23. Re2 {[%clk 0:01:28.1]} 23...
Bf8 {[%clk 0:02:14]} 24. g5 {[%clk 0:01:25.8]} 24... b4 {[%clk 0:02:05.4]} 25.
Nd4 {[%clk 0:01:20.5]} 25... a5 {[%clk 0:02:03.1]} 26. e6 {[%clk 0:01:20]} 26...
Re8 {[%clk 0:01:54.5]} 27. Rf1 {[%clk 0:00:56.5]} 27... Re7 {[%clk 0:01:27.4]}
28. Ref2 {[%clk 0:00:44.8]} 28... Qe5 {[%clk 0:01:09.9]} 29. Rxf7 {[%clk
0:00:37.7]} 29... Rxf7 {[%clk 0:01:07.9]} 30. exf7+ {[%clk 0:00:29.7]} 30... Kh8
{[%clk 0:01:01.2]} 31. g6 {[%clk 0:00:24.4]} 31... Rc7 {[%clk 0:00:50]} 32. Nf3
{[%clk 0:00:19.6]} 32... Qh5 {[%clk 0:00:44.4]} 33. Re1 {[%clk 0:00:05.4]} 33...
Qxg6 {[%clk 0:00:38.7]} 34. Qxg6 {[%clk 0:00:03.3]} 34... hxg6 {[%clk 0:00:39]}
35. Ne5 {[%clk 0:00:03.7]} 35... Kh7 {[%clk 0:00:32.1]} 36. Rg1 {[%clk
0:00:03.8]} 36... Bd6 {[%clk 0:00:30.9]} 37. Nxg6 {[%clk 0:00:03.5]} 37... Rxf7
{[%clk 0:00:30.1]} 38. a3 {[%clk 0:00:04]} 38... Rf6 {[%clk 0:00:28.7]} 39. Nh4
{[%clk 0:00:03.4]} 39... bxa3 {[%clk 0:00:28]} 40. bxa3 {[%clk 0:00:02.4]} 40...
Bxa3 {[%clk 0:00:28.9]} 41. Rg4 {[%clk 0:00:02]} 41... Bb4 {[%clk 0:00:25]} 42.
Ka2 {[%clk 0:00:02.6]} 42... Rf2 {[%clk 0:00:23.7]} 43. Kb3 {[%clk 0:00:03]}
43... Bd6 {[%clk 0:00:21.4]} 44. Ng2 {[%clk 0:00:02.3]} 44... Be5 {[%clk
0:00:19.5]} 45. Ne3 {[%clk 0:00:01.6]} 45... Rf3 {[%clk 0:00:18.1]} 0-1

[Event "*** Titled Tuesday Blitz"]
[Site "Chess.com"]
[Date "2020.04.07"]
[Round "3"]
[White "Playgood28"]
[Black "IMRosen"]
[Result "0-1"]
[WhiteElo "2242"]
[BlackElo "2470"]
[TimeControl "180+1"]
[EndTime "13:30:20 PDT"]
[Termination "IMRosen won on time"]

1. d4 {[%clk 0:02:34.3]} 1... d5 {[%clk 0:02:59.5]} 2. c4 {[%clk 0:02:33]} 2...
e6 {[%clk 0:02:59.9]} 3. Nc3 {[%clk 0:02:32]} 3... Nf6 {[%clk 0:03:00.5]} 4. Bg5
{[%clk 0:02:31.1]} 4... Be7 {[%clk 0:03:00.2]} 5. cxd5 {[%clk 0:02:31.1]} 5...
exd5 {[%clk 0:03:00.2]} 6. Qc2 {[%clk 0:02:29.4]} 6... c5 {[%clk 0:02:31.5]} 7.
e3 {[%clk 0:02:26]} 7... Nc6 {[%clk 0:02:31.1]} 8. dxc5 {[%clk 0:02:25.3]} 8...
O-O {[%clk 0:02:23.7]} 9. Nf3 {[%clk 0:02:22.7]} 9... Be6 {[%clk 0:02:12.3]} 10.
Rd1 {[%clk 0:02:17.3]} 10... Qa5 {[%clk 0:02:10.9]} 11. a3 {[%clk 0:02:15.4]}
11... Qxc5 {[%clk 0:02:09.3]} 12. b4 {[%clk 0:01:50.8]} 12... Qb6 {[%clk
0:01:52.5]} 13. Bd3 {[%clk 0:01:36.6]} 13... h6 {[%clk 0:01:51.2]} 14. Bf4
{[%clk 0:01:32.6]} 14... Rac8 {[%clk 0:01:50.8]} 15. Qb2 {[%clk 0:01:30.4]}
15... Nh5 {[%clk 0:01:11.7]} 16. O-O {[%clk 0:01:03.6]} 16... Nxf4 {[%clk
0:01:09]} 17. exf4 {[%clk 0:00:56.8]} 17... Bf6 {[%clk 0:00:59.6]} 18. Rc1
{[%clk 0:00:50]} 18... Ne7 {[%clk 0:00:47.5]} 19. Qd2 {[%clk 0:00:48.4]} 19...
Rfd8 {[%clk 0:00:46.4]} 20. Rfe1 {[%clk 0:00:45.6]} 20... Nf5 {[%clk 0:00:45.4]}
21. Ne5 {[%clk 0:00:43.7]} 21... Nd4 {[%clk 0:00:37.5]} 22. Qd1 {[%clk
0:00:42.3]} 22... a5 {[%clk 0:00:34.6]} 23. b5 {[%clk 0:00:39.8]} 23... Rc7
{[%clk 0:00:28.9]} 24. a4 {[%clk 0:00:36.3]} 24... Rdc8 {[%clk 0:00:29]} 25. Na2
{[%clk 0:00:31.7]} 25... Qd6 {[%clk 0:00:22.5]} 26. Rxc7 {[%clk 0:00:29.1]}
26... Rxc7 {[%clk 0:00:22.4]} 27. Qd2 {[%clk 0:00:21.2]} 27... b6 {[%clk
0:00:21.7]} 28. Rc1 {[%clk 0:00:19.6]} 28... Rc5 {[%clk 0:00:19.8]} 29. Bh7+
{[%clk 0:00:15.7]} 29... Kxh7 {[%clk 0:00:18.8]} 30. Qxd4 {[%clk 0:00:16.2]}
30... Rxc1+ {[%clk 0:00:15.8]} 31. Nxc1 {[%clk 0:00:14.9]} 31... Qa3 {[%clk
0:00:16.4]} 32. Qd1 {[%clk 0:00:11.8]} 32... Qc3 {[%clk 0:00:10.9]} 33. Qd3+
{[%clk 0:00:11.1]} 33... Qxd3 {[%clk 0:00:11]} 34. Ncxd3 {[%clk 0:00:11.4]}
34... d4 {[%clk 0:00:09.1]} 35. Kf1 {[%clk 0:00:10.4]} 35... Bb3 {[%clk
0:00:08.8]} 36. Nb2 {[%clk 0:00:08.3]} 36... g5 {[%clk 0:00:07.9]} 37. g3 {[%clk
0:00:04.2]} 37... gxf4 {[%clk 0:00:06.9]} 38. gxf4 {[%clk 0:00:04.2]} 38... Kg7
{[%clk 0:00:07.6]} 39. Ke2 {[%clk 0:00:04.2]} 39... Be7 {[%clk 0:00:04.5]} 40.
Kd3 {[%clk 0:00:04.5]} 40... Bc5 {[%clk 0:00:04.5]} 41. Nec4 {[%clk 0:00:03.5]}
41... Kf6 {[%clk 0:00:03.3]} 42. Ne5 {[%clk 0:00:01.9]} 42... Bd5 {[%clk
0:00:03.6]} 43. Nd7+ {[%clk 0:00:01.4]} 43... Ke6 {[%clk 0:00:03.6]} 0-1

[Event "*** Titled Tuesday Blitz"]
[Site "Chess.com"]
[Date "2020.04.07"]
[Round "3"]
[White "timator"]
[Black "Anton_Demchenko"]
[Result "0-1"]
[WhiteElo "2673"]
[BlackElo "2960"]
[TimeControl "180+1"]
[EndTime "13:30:21 PDT"]
[Termination "Anton_Demchenko won by resignation"]

1. Nf3 {[%clk 0:03:00.9]} 1... Nf6 {[%clk 0:02:59.9]} 2. d4 {[%clk 0:02:58.7]}
2... d6 {[%clk 0:02:59.7]} 3. g3 {[%clk 0:02:58.5]} 3... g6 {[%clk 0:02:59.4]}
4. Bg2 {[%clk 0:02:59.1]} 4... Bg7 {[%clk 0:03:00.3]} 5. O-O {[%clk 0:03:00]}
5... O-O {[%clk 0:03:01]} 6. b3 {[%clk 0:03:00.9]} 6... Nbd7 {[%clk 0:03:01.9]}
7. Bb2 {[%clk 0:03:01.5]} 7... Re8 {[%clk 0:03:02.3]} 8. c4 {[%clk 0:02:57.3]}
8... e5 {[%clk 0:03:02.5]} 9. dxe5 {[%clk 0:02:57.6]} 9... Ng4 {[%clk
0:03:02.9]} 10. Nc3 {[%clk 0:02:56.1]} 10... dxe5 {[%clk 0:03:03.4]} 11. h3
{[%clk 0:02:56.2]} 11... Nh6 {[%clk 0:03:03.9]} 12. Qc2 {[%clk 0:02:54.6]} 12...
e4 {[%clk 0:03:04]} 13. Nh2 {[%clk 0:02:35.2]} 13... f5 {[%clk 0:03:03.9]} 14.
Rfd1 {[%clk 0:02:31.5]} 14... c6 {[%clk 0:03:03.8]} 15. Nf1 {[%clk 0:02:28.9]}
15... Qe7 {[%clk 0:03:03.8]} 16. Ne3 {[%clk 0:02:28.5]} 16... Nf7 {[%clk
0:02:54.8]} 17. a4 {[%clk 0:02:27.4]} 17... a5 {[%clk 0:02:52.7]} 18. Rac1
{[%clk 0:02:26.2]} 18... Nde5 {[%clk 0:02:43.9]} 19. Ra1 {[%clk 0:02:17.3]}
19... Bh6 {[%clk 0:02:34.6]} 20. Ba3 {[%clk 0:02:12.9]} 20... Qf6 {[%clk
0:02:34]} 21. Bc5 {[%clk 0:02:08.4]} 21... Be6 {[%clk 0:02:30.2]} 22. Nf1 {[%clk
0:01:49.3]} 22... Bg7 {[%clk 0:02:22.4]} 23. Bd4 {[%clk 0:01:46.7]} 23... Qe7
{[%clk 0:02:22.5]} 24. Rac1 {[%clk 0:01:42.5]} 24... Red8 {[%clk 0:02:06.8]} 25.
Bb6 {[%clk 0:01:38.1]} 25... Re8 {[%clk 0:01:51.2]} 26. Bd4 {[%clk 0:01:22]}
26... h5 {[%clk 0:01:49.9]} 27. h4 {[%clk 0:01:20.7]} 27... g5 {[%clk
0:01:47.8]} 28. hxg5 {[%clk 0:01:10.7]} 28... Qxg5 {[%clk 0:01:47.2]} 29. Qd2
{[%clk 0:01:05.5]} 29... Qe7 {[%clk 0:01:47.3]} 30. Be3 {[%clk 0:01:01.1]} 30...
Ng4 {[%clk 0:01:24.4]} 31. Bf4 {[%clk 0:00:55.3]} 31... Rad8 {[%clk 0:01:17.9]}
32. Qc2 {[%clk 0:00:54.7]} 32... Qc5 {[%clk 0:01:18]} 33. Ne3 {[%clk 0:00:53.3]}
33... Rxd1+ {[%clk 0:01:10.7]} 34. Rxd1 {[%clk 0:00:52.1]} 34... Nge5 {[%clk
0:01:11]} 35. Nf1 {[%clk 0:00:40.4]} 35... Ng6 {[%clk 0:01:06.5]} 36. Be3 {[%clk
0:00:40.2]} 36... Qb4 {[%clk 0:01:07]} 37. Na2 {[%clk 0:00:38.6]} 37... Qe7
{[%clk 0:01:06.8]} 38. Bd4 {[%clk 0:00:29]} 38... Bxd4 {[%clk 0:01:01.6]} 39.
Rxd4 {[%clk 0:00:29.9]} 39... h4 {[%clk 0:01:02.5]} 40. Qd2 {[%clk 0:00:27.1]}
40... c5 {[%clk 0:00:39.2]} 41. Rd5 {[%clk 0:00:24.9]} 41... Bxd5 {[%clk
0:00:39.7]} 42. Qxd5 {[%clk 0:00:25.8]} 42... Ne5 {[%clk 0:00:30.7]} 43. Ne3
{[%clk 0:00:22.4]} 43... hxg3 {[%clk 0:00:25.8]} 44. Nxf5 {[%clk 0:00:22.3]}
44... gxf2+ {[%clk 0:00:25.6]} 45. Kxf2 {[%clk 0:00:23.2]} 45... Qg5 {[%clk
0:00:12.1]} 46. Ne3 {[%clk 0:00:21]} 46... Qf4+ {[%clk 0:00:12]} 47. Ke1 {[%clk
0:00:15.7]} 47... Qxe3 {[%clk 0:00:12.1]} 48. Bxe4 {[%clk 0:00:15]} 48... Qg3+
{[%clk 0:00:11.4]} 0-1

[Event "*** Titled Tuesday Blitz"]
[Site "Chess.com"]
[Date "2020.04.07"]
[Round "3"]
[White "ValentinDragnev"]
[Black "Natalya_Buksa"]
[Result "1/2-1/2"]
[WhiteElo "2715"]
[BlackElo "2456"]
[TimeControl "180+1"]
[EndTime "13:30:21 PDT"]
[Termination "Game drawn by agreement"]

1. Nf3 {[%clk 0:03:00.9]} 1... d5 {[%clk 0:02:58.1]} 2. d4 {[%clk 0:02:58.4]}
2... Nf6 {[%clk 0:02:58.1]} 3. Bf4 {[%clk 0:02:56.4]} 3... e6 {[%clk 0:02:57.7]}
4. e3 {[%clk 0:02:56.2]} 4... c5 {[%clk 0:02:58]} 5. Nbd2 {[%clk 0:02:56.1]}
5... Nc6 {[%clk 0:02:58.5]} 6. c3 {[%clk 0:02:54.6]} 6... cxd4 {[%clk
0:02:57.9]} 7. exd4 {[%clk 0:02:52.9]} 7... Nh5 {[%clk 0:02:58.4]} 8. Bg5 {[%clk
0:02:43.9]} 8... f6 {[%clk 0:02:57]} 9. Be3 {[%clk 0:02:44.5]} 9... g6 {[%clk
0:02:56.6]} 10. Be2 {[%clk 0:02:28.7]} 10... Bd6 {[%clk 0:02:52]} 11. O-O {[%clk
0:02:28]} 11... O-O {[%clk 0:02:51]} 12. Re1 {[%clk 0:02:27.7]} 12... Ng7 {[%clk
0:02:50.5]} 13. Nf1 {[%clk 0:02:23.3]} 13... Bd7 {[%clk 0:02:47.5]} 14. c4
{[%clk 0:02:22.7]} 14... Rc8 {[%clk 0:02:43.6]} 15. cxd5 {[%clk 0:02:18.8]}
15... exd5 {[%clk 0:02:43.9]} 16. Ng3 {[%clk 0:02:13.7]} 16... Be6 {[%clk
0:02:39.6]} 17. Bf1 {[%clk 0:02:09.9]} 17... Qd7 {[%clk 0:02:38.5]} 18. a3
{[%clk 0:02:06.3]} 18... Ne7 {[%clk 0:02:25.5]} 19. Bh6 {[%clk 0:01:57.4]} 19...
Rfe8 {[%clk 0:02:24.7]} 20. Qd2 {[%clk 0:01:48]} 20... Nef5 {[%clk 0:02:23.1]}
21. Bf4 {[%clk 0:01:45]} 21... Nxg3 {[%clk 0:02:11.5]} 22. hxg3 {[%clk
0:01:43.6]} 22... Bf5 {[%clk 0:02:06.3]} 23. Qa5 {[%clk 0:01:32.8]} 23... Bxf4
{[%clk 0:02:01.9]} 24. gxf4 {[%clk 0:01:33.7]} 24... a6 {[%clk 0:01:58.5]} 25.
Rac1 {[%clk 0:01:28.3]} 25... Ne6 {[%clk 0:01:49.7]} 26. Qd2 {[%clk 0:01:14]}
26... Rxc1 {[%clk 0:01:41.2]} 27. Rxc1 {[%clk 0:01:13.1]} 27... Rc8 {[%clk
0:01:41.8]} 28. Rxc8+ {[%clk 0:00:58.7]} 28... Qxc8 {[%clk 0:01:41.5]} 29. g3
{[%clk 0:00:57.6]} 29... Kf7 {[%clk 0:01:40.3]} 30. Bd3 {[%clk 0:00:54.2]} 30...
Bxd3 {[%clk 0:01:37.3]} 31. Qxd3 {[%clk 0:00:55.1]} 31... Qc1+ {[%clk
0:01:35.1]} 32. Kg2 {[%clk 0:00:50.9]} 32... Qxb2 {[%clk 0:01:35.5]} 33. f5
{[%clk 0:00:49.3]} 33... Nc7 {[%clk 0:01:10.8]} 34. fxg6+ {[%clk 0:00:44.8]}
34... hxg6 {[%clk 0:01:10.5]} 35. Nh4 {[%clk 0:00:45.4]} 35... f5 {[%clk
0:00:49]} 36. Nf3 {[%clk 0:00:45.5]} 36... Ne6 {[%clk 0:00:49.4]} 37. Qe3 {[%clk
0:00:43.8]} 37... Qc2 {[%clk 0:00:34.3]} 38. Ne5+ {[%clk 0:00:27.6]} 38... Kf6
{[%clk 0:00:34]} 39. Qh6 {[%clk 0:00:24.9]} 39... Qe4+ {[%clk 0:00:30.8]} 40.
Kh2 {[%clk 0:00:20.2]} 40... Qxd4 {[%clk 0:00:26.2]} 41. Qh8+ {[%clk 0:00:14.8]}
41... Ng7 {[%clk 0:00:26]} 42. f4 {[%clk 0:00:03]} 42... Qf2+ {[%clk 0:00:12.4]}
43. Kh1 {[%clk 0:00:02.9]} 43... Qf1+ {[%clk 0:00:12.4]} 44. Kh2 {[%clk
0:00:03.3]} 44... Qf2+ {[%clk 0:00:09.7]} 45. Kh1 {[%clk 0:00:03.7]} 1/2-1/2

[Event "*** Titled Tuesday Blitz"]
[Site "Chess.com"]
[Date "2020.04.07"]
[Round "3"]
[White "cuprichanin"]
[Black "tgpgoat"]
[Result "0-1"]
[WhiteElo "2329"]
[BlackElo "2063"]
[TimeControl "180+1"]
[EndTime "13:30:21 PDT"]
[Termination "tgpgoat won by checkmate"]

1. Nc3 {[%clk 0:03:00.4]} 1... Nf6 {[%clk 0:02:59.5]} 2. e4 {[%clk 0:02:59.3]}
2... e5 {[%clk 0:02:58.1]} 3. Bc4 {[%clk 0:02:57.8]} 3... Bc5 {[%clk 0:02:51.5]}
4. d3 {[%clk 0:02:57.3]} 4... O-O {[%clk 0:02:41.6]} 5. h3 {[%clk 0:02:52.6]}
5... c6 {[%clk 0:02:39.6]} 6. Nge2 {[%clk 0:02:43.5]} 6... d5 {[%clk 0:02:29.8]}
7. exd5 {[%clk 0:02:38.5]} 7... cxd5 {[%clk 0:02:30.7]} 8. Bb3 {[%clk
0:02:32.9]} 8... Nc6 {[%clk 0:02:26.4]} 9. O-O {[%clk 0:02:10.4]} 9... Bf5
{[%clk 0:02:22.1]} 10. Bg5 {[%clk 0:02:05.2]} 10... Be6 {[%clk 0:02:16.1]} 11.
Bxf6 {[%clk 0:01:58.4]} 11... gxf6 {[%clk 0:02:17]} 12. Ng3 {[%clk 0:01:57.8]}
12... Kh8 {[%clk 0:02:13.8]} 13. Qh5 {[%clk 0:01:48.9]} 13... Rg8 {[%clk
0:01:42.9]} 14. Kh2 {[%clk 0:01:41]} 14... Qd7 {[%clk 0:01:36.8]} 15. Qh4 {[%clk
0:01:07.1]} 15... Rg6 {[%clk 0:01:34.5]} 16. f4 {[%clk 0:00:59.4]} 16... Rag8
{[%clk 0:01:19.4]} 17. Nce2 {[%clk 0:00:57]} 17... Nd4 {[%clk 0:01:16.1]} 18.
Nxd4 {[%clk 0:00:12.4]} 18... Rxg3 {[%clk 0:00:42.6]} 19. Qxf6+ {[%clk
0:00:10.9]} 19... R8g7 {[%clk 0:00:39.2]} 20. Nxe6 {[%clk 0:00:07.7]} 20...
Rxg2+ {[%clk 0:00:38.1]} 21. Kh1 {[%clk 0:00:07.1]} 21... fxe6 {[%clk
0:00:34.3]} 22. fxe5 {[%clk 0:00:04.9]} 22... Qe8 {[%clk 0:00:32]} 23. d4 {[%clk
0:00:04.1]} 23... Bxd4 {[%clk 0:00:29.9]} 24. Qf8+ {[%clk 0:00:02.6]} 24... Qxf8
{[%clk 0:00:28.3]} 25. Rxf8+ {[%clk 0:00:03.5]} 25... Rg8 {[%clk 0:00:28.4]} 26.
Rxg8+ {[%clk 0:00:04.1]} 26... Rxg8 {[%clk 0:00:28.7]} 27. c3 {[%clk 0:00:05]}
27... Bxe5 {[%clk 0:00:28.3]} 28. Re1 {[%clk 0:00:05.5]} 28... Rg5 {[%clk
0:00:28.2]} 29. Rf1 {[%clk 0:00:05.6]} 29... Kg7 {[%clk 0:00:25.9]} 30. Bc2
{[%clk 0:00:05.1]} 30... Rh5 {[%clk 0:00:24.2]} 31. Rg1+ {[%clk 0:00:04.3]}
31... Kf6 {[%clk 0:00:23.9]} 32. Rf1+ {[%clk 0:00:04.7]} 32... Ke7 {[%clk
0:00:23.8]} 33. Re1 {[%clk 0:00:05.3]} 33... Rxh3+ {[%clk 0:00:22.6]} 34. Kg2
{[%clk 0:00:05.7]} 34... Rh2+ {[%clk 0:00:22.8]} 35. Kf3 {[%clk 0:00:05.4]}
35... Rxc2 {[%clk 0:00:20.4]} 36. Rxe5 {[%clk 0:00:05.5]} 36... Rxb2 {[%clk
0:00:20.8]} 37. Rh5 {[%clk 0:00:06.1]} 37... Rxa2 {[%clk 0:00:21]} 38. Rxh7+
{[%clk 0:00:06.7]} 38... Kd6 {[%clk 0:00:21.2]} 39. Ke3 {[%clk 0:00:07.4]} 39...
Ra3 {[%clk 0:00:20.6]} 40. Kd3 {[%clk 0:00:08.3]} 40... b5 {[%clk 0:00:20.7]}
41. Kd4 {[%clk 0:00:07.9]} 41... a5 {[%clk 0:00:20.3]} 42. Rh6 {[%clk
0:00:06.7]} 42... b4 {[%clk 0:00:20]} 43. cxb4 {[%clk 0:00:06.9]} 43... axb4
{[%clk 0:00:20.9]} 44. Rg6 {[%clk 0:00:07.3]} 44... Rh3 {[%clk 0:00:20.3]} 45.
Rf6 {[%clk 0:00:05.5]} 45... b3 {[%clk 0:00:20.2]} 46. Rf2 {[%clk 0:00:04.9]}
46... e5# {[%clk 0:00:19.4]} 0-1

[Event "*** Titled Tuesday Blitz"]
[Site "Chess.com"]
[Date "2020.04.07"]
[Round "3"]
[White "econpower"]
[Black "checkmatequen"]
[Result "1-0"]
[WhiteElo "2735"]
[BlackElo "2249"]
[TimeControl "180+1"]
[EndTime "13:30:22 PDT"]
[Termination "econpower won by resignation"]

1. c4 {[%clk 0:01:57.6]} 1... c5 {[%clk 0:02:55.1]} 2. g3 {[%clk 0:01:57.4]}
2... Nc6 {[%clk 0:02:54.9]} 3. Bg2 {[%clk 0:01:57.3]} 3... g6 {[%clk 0:02:55.4]}
4. Nc3 {[%clk 0:01:57]} 4... Bg7 {[%clk 0:02:55.9]} 5. e3 {[%clk 0:01:57.5]}
5... d6 {[%clk 0:02:56.5]} 6. Nge2 {[%clk 0:01:57.5]} 6... Nf6 {[%clk
0:02:56.7]} 7. O-O {[%clk 0:01:57.2]} 7... O-O {[%clk 0:02:56.6]} 8. a3 {[%clk
0:01:56.2]} 8... Be6 {[%clk 0:02:52.5]} 9. Nd5 {[%clk 0:01:55.9]} 9... Ne5
{[%clk 0:02:45.7]} 10. d3 {[%clk 0:01:54.9]} 10... Nxd5 {[%clk 0:02:42]} 11.
cxd5 {[%clk 0:01:53.8]} 11... Bg4 {[%clk 0:02:41.8]} 12. f3 {[%clk 0:01:51.3]}
12... Bd7 {[%clk 0:02:32.9]} 13. Qc2 {[%clk 0:01:50.7]} 13... b5 {[%clk
0:02:25.8]} 14. f4 {[%clk 0:01:47.1]} 14... Ng4 {[%clk 0:02:24.6]} 15. h3 {[%clk
0:01:47.7]} 15... Nh6 {[%clk 0:02:25]} 16. g4 {[%clk 0:01:45.9]} 16... Rc8
{[%clk 0:02:21.1]} 17. Rb1 {[%clk 0:01:44.2]} 17... c4 {[%clk 0:02:19.6]} 18. d4
{[%clk 0:01:43.6]} 18... f5 {[%clk 0:02:15.4]} 19. g5 {[%clk 0:01:40.8]} 19...
Nf7 {[%clk 0:02:14.1]} 20. Bd2 {[%clk 0:01:39.5]} 20... a5 {[%clk 0:02:11.7]}
21. b3 {[%clk 0:01:38.9]} 21... c3 {[%clk 0:02:00.4]} 22. Be1 {[%clk 0:01:30.6]}
22... b4 {[%clk 0:01:59.9]} 23. Nc1 {[%clk 0:01:29.3]} 23... Bb5 {[%clk
0:01:56.9]} 24. Rf2 {[%clk 0:01:26.6]} 24... Qb6 {[%clk 0:01:54.8]} 25. Kh2
{[%clk 0:01:16.8]} 25... Nd8 {[%clk 0:01:49.2]} 26. h4 {[%clk 0:01:12.7]} 26...
Qa6 {[%clk 0:01:37.5]} 27. a4 {[%clk 0:01:10.5]} 27... Be8 {[%clk 0:01:30.8]}
28. h5 {[%clk 0:01:10.9]} 28... gxh5 {[%clk 0:01:29.1]} 29. Ne2 {[%clk
0:00:55.1]} 29... Bg6 {[%clk 0:01:27.4]} 30. Ng3 {[%clk 0:00:54.4]} 30... Kf7
{[%clk 0:01:06.1]} 31. Nxf5 {[%clk 0:00:47.7]} 31... Qb7 {[%clk 0:00:56.4]} 32.
Rd1 {[%clk 0:00:44]} 32... Qd7 {[%clk 0:00:53.3]} 33. e4 {[%clk 0:00:43.7]}
33... Kg8 {[%clk 0:00:39.2]} 34. Bh3 {[%clk 0:00:43.4]} 34... Qa7 {[%clk
0:00:33.6]} 35. Nxg7 {[%clk 0:00:41.6]} 35... Kxg7 {[%clk 0:00:31.4]} 36. Bxc8
{[%clk 0:00:41.7]} 36... Nf7 {[%clk 0:00:29.4]} 37. Bh3 {[%clk 0:00:41.4]} 37...
Qc7 {[%clk 0:00:17.8]} 38. Rg2 {[%clk 0:00:41]} 38... Kh8 {[%clk 0:00:17.5]} 39.
f5 {[%clk 0:00:40.9]} 39... Bxf5 {[%clk 0:00:11.6]} 40. Bxf5 {[%clk 0:00:39.7]}
40... Nd8 {[%clk 0:00:12]} 41. Bh4 {[%clk 0:00:35.7]} 41... e6 {[%clk 0:00:12]}
42. dxe6 {[%clk 0:00:35.6]} 42... d5+ {[%clk 0:00:12.2]} 43. Bg3 {[%clk
0:00:36.1]} 43... Qe7 {[%clk 0:00:12.4]} 44. Be5+ {[%clk 0:00:36.4]} 44... Kg8
{[%clk 0:00:11.4]} 45. g6 {[%clk 0:00:36.7]} 45... h6 {[%clk 0:00:11.1]} 46. g7
{[%clk 0:00:36.6]} 46... Re8 {[%clk 0:00:11]} 47. Qf2 {[%clk 0:00:35.7]} 47...
Nxe6 {[%clk 0:00:10.9]} 48. exd5 {[%clk 0:00:28.5]} 48... Ng5 {[%clk 0:00:08.5]}
49. Bc2 {[%clk 0:00:25.7]} 49... Qd7 {[%clk 0:00:07.4]} 50. Qf5 {[%clk
0:00:22.9]} 50... Qe7 {[%clk 0:00:03.8]} 51. Rf1 {[%clk 0:00:19.8]} 51... Rc8
{[%clk 0:00:03.5]} 52. Rxg5 {[%clk 0:00:19.7]} 1-0

[Event "*** Titled Tuesday Blitz"]
[Site "Chess.com"]
[Date "2020.04.07"]
[Round "3"]
[White "SGchess01"]
[Black "Magician4MA"]
[Result "1-0"]
[WhiteElo "2806"]
[BlackElo "2476"]
[TimeControl "180+1"]
[EndTime "13:30:22 PDT"]
[Termination "SGchess01 won on time"]

1. e4 {[%clk 0:03:00.2]} 1... e5 {[%clk 0:02:57.3]} 2. Nf3 {[%clk 0:03:00.2]}
2... Nc6 {[%clk 0:02:56.5]} 3. Bc4 {[%clk 0:03:00.6]} 3... Nf6 {[%clk
0:02:55.7]} 4. d3 {[%clk 0:03:00.3]} 4... h6 {[%clk 0:02:55.2]} 5. O-O {[%clk
0:02:56.5]} 5... d6 {[%clk 0:02:55.1]} 6. Bb3 {[%clk 0:02:54.7]} 6... g5 {[%clk
0:02:52.5]} 7. c3 {[%clk 0:02:55]} 7... g4 {[%clk 0:02:49.7]} 8. Nfd2 {[%clk
0:02:53.2]} 8... h5 {[%clk 0:02:47.5]} 9. Nc4 {[%clk 0:02:51.7]} 9... Bh6 {[%clk
0:02:45.2]} 10. Bxh6 {[%clk 0:02:46.1]} 10... Rxh6 {[%clk 0:02:46.1]} 11. d4
{[%clk 0:02:46.8]} 11... Qe7 {[%clk 0:02:21]} 12. Re1 {[%clk 0:02:44.1]} 12...
Bd7 {[%clk 0:02:18.7]} 13. Ne3 {[%clk 0:02:37.1]} 13... O-O-O {[%clk 0:02:12.6]}
14. Nd2 {[%clk 0:02:24.8]} 14... h4 {[%clk 0:02:06.7]} 15. Ba4 {[%clk
0:02:18.2]} 15... Qf8 {[%clk 0:01:49.7]} 16. d5 {[%clk 0:02:02.1]} 16... Ne7
{[%clk 0:01:46.2]} 17. Bxd7+ {[%clk 0:02:02.2]} 17... Rxd7 {[%clk 0:01:41.3]}
18. Nxg4 {[%clk 0:02:02.6]} 18... Nxg4 {[%clk 0:01:24.9]} 19. Qxg4 {[%clk
0:02:03.5]} 19... f5 {[%clk 0:01:17.9]} 20. exf5 {[%clk 0:02:01.7]} 20... Nxf5
{[%clk 0:01:18]} 21. Qh3 {[%clk 0:01:58.5]} 21... Rg7 {[%clk 0:01:14.9]} 22. Ne4
{[%clk 0:01:50.5]} 22... Kb8 {[%clk 0:01:12.7]} 23. f3 {[%clk 0:01:06.9]} 23...
Qf7 {[%clk 0:00:57.1]} 24. Rad1 {[%clk 0:01:04.7]} 24... Ne7 {[%clk 0:00:42.4]}
25. Qd7 {[%clk 0:00:30.2]} 25... Qxf3 {[%clk 0:00:32.2]} 26. Ng5 {[%clk
0:00:16.4]} 26... Qf6 {[%clk 0:00:18.9]} 27. Qd8+ {[%clk 0:00:10.2]} 27... Nc8
{[%clk 0:00:18.6]} 28. Qxf6 {[%clk 0:00:10.3]} 28... Rxf6 {[%clk 0:00:18.6]} 29.
Ne6 {[%clk 0:00:07.7]} 29... Rgg6 {[%clk 0:00:16.5]} 30. Rf1 {[%clk 0:00:08.2]}
30... Ne7 {[%clk 0:00:16.1]} 31. c4 {[%clk 0:00:07.4]} 31... Kc8 {[%clk
0:00:15.6]} 32. Rxf6 {[%clk 0:00:07]} 32... Rxf6 {[%clk 0:00:15.7]} 33. Rf1
{[%clk 0:00:07.8]} 33... Rxf1+ {[%clk 0:00:13.7]} 34. Kxf1 {[%clk 0:00:08.7]}
34... Kd7 {[%clk 0:00:14]} 35. Ng5 {[%clk 0:00:08.6]} 35... c6 {[%clk
0:00:13.7]} 36. dxc6+ {[%clk 0:00:08.6]} 36... Kxc6 {[%clk 0:00:13.9]} 37. Ke2
{[%clk 0:00:08.4]} 37... Nf5 {[%clk 0:00:13.4]} 38. Nf3 {[%clk 0:00:07.9]} 38...
Kc5 {[%clk 0:00:13.3]} 39. b3 {[%clk 0:00:07.2]} 39... Kb4 {[%clk 0:00:08.3]}
40. Kd3 {[%clk 0:00:04.7]} 40... Ka3 {[%clk 0:00:06.6]} 41. Ke4 {[%clk
0:00:05.3]} 41... Ne7 {[%clk 0:00:06.3]} 42. Nxh4 {[%clk 0:00:05.1]} 42... Kxa2
{[%clk 0:00:06]} 43. Nf5 {[%clk 0:00:05.5]} 43... Nc6 {[%clk 0:00:05.6]} 44.
Nxd6 {[%clk 0:00:04.6]} 44... Kxb3 {[%clk 0:00:05.2]} 45. h4 {[%clk 0:00:04.9]}
45... a5 {[%clk 0:00:04.5]} 46. Nxb7 {[%clk 0:00:04.3]} 46... Kb4 {[%clk
0:00:02.7]} 47. Nxa5 {[%clk 0:00:03.7]} 47... Nxa5 {[%clk 0:00:02.2]} 48. h5
{[%clk 0:00:04.6]} 1-0